bitfinex/quotes_ETHUSD_20240811
["timestamp","ask_amount","ask_price","bid_price","bid_amount"]
[1723346173175,0.0582399,2642.0,2641.7,0.996995]
[1723346173676,0.0582399,2642.0,2641.6,3.78544]
[1723346174959,0.0582399,2642.0,2640.9,0.50896821]
[1723346174960,1.158,2641.7,2641.0,2.352]
[1723346175172,1.158,2641.7,2641.2,7.57211]
[1723346175352,0.05802851,2641.6,2641.2,7.57211]
[1723346175676,0.05802851,2641.6,2641.3,0.757211]
[1723346175885,0.05802851,2641.6,2641.2,3.78604]
[1723346176243,2.41152851,2641.6,2641.2,3.78604]
[1723346176443,2.41152851,2641.6,2641.0,6.1383]
[1723346177399,2.41152851,2641.6,2641.1,3.78629]
[1723346177592,2.41152851,2641.6,2641.2,3.78613]
[1723346179385,1.158,2641.3,2640.8,10.04859]
[1723346179586,1.158,2641.3,2640.8,10.04858]
[1723346179758,0.05750341,2641.2,2640.8,6.26194]
[1723346179960,1.158,2641.3,2640.9,0.626194]
[1723346180257,0.05750294,2641.1,2640.9,0.626194]
[1723346180459,1.158,2641.3,2640.9,0.626194]
[1723346180664,0.05750247,2641.0,2640.9,4.412744]
[1723346181194,1.158,2641.3,2640.9,4.412744]
[1723346181366,0.05750247,2641.0,2640.9,4.412744]
[1723346181688,2.3975,2641.8,2641.1,3.7862]
[1723346181861,1.158,2642.0,2641.6,3.78546]
[1723346182049,1.158,2642.2,2641.8,6.26056]
[1723346182268,1.158,2642.2,2641.9,0.07569493]
[1723346182464,1.158,2642.2,2641.9,3.86082493]
[1723346183984,4.94252,2642.4,2641.9,3.86082493]
[1723346184383,1.158,2642.4,2642.0,3.78501]
[1723346184616,1.158,2642.4,2642.1,3.86054838]
[1723346185702,1.158,2642.4,2642.1,3.78486]
[1723346186082,1.158,2642.4,2641.9,3.86071792]
[1723346186406,1.158,2642.4,2641.9,4.87283971]
[1723346186780,4.94245,2642.4,2641.9,1.08780971]
[1723346187095,4.94245,2642.4,2641.9,4.79722179]
[1723346187285,4.94245,2642.4,2642.0,0.07568824]
[1723346187610,1.158,2642.4,2642.0,0.07568824]
[1723346189179,1.158,2642.4,2642.0,3.86068824]
[1723346189383,1.158,2642.4,2642.0,3.86059824]
[1723346191308,1.158,2642.2,2642.0,3.86059824]
[1723346192900,1.158,2642.2,2642.0,3.85919346]
[1723346193177,0.05427975,2642.1,2642.0,3.78491]
[1723346194211,1.158,2642.3,2641.9,0.07428545]
[1723346194509,0.05427836,2642.1,2642.0,7.57001]
[1723346194712,1.158,2642.3,2642.1,3.78478]
[1723346195010,0.05428273,2642.2,2642.1,3.86046866]
[1723346195217,1.158,2642.8,2642.5,3.78424]
[1723346195509,6.18093,2643.1,2642.5,3.85991703]
[1723346195713,1.158,2642.9,2642.5,6.33521703]
[1723346196416,1.158,2642.9,2642.6,3.78406]
[1723346196712,1.158,2642.9,2642.7,0.07567226]
[1723346197981,1.158,2642.9,2642.6,3.85982247]
[1723346198716,1.158,2642.9,2642.7,3.78399]
[1723346198885,1.158,2642.9,2642.6,0.07567242]
[1723346199282,1.158,2642.9,2642.6,0.0756725]
[1723346199625,1.158,2642.9,2642.6,3.8598025]
[1723346200123,1.158,2642.9,2642.7,3.78398]
[1723346201123,1.158,2642.8,2642.6,0.0756725]
[1723346201308,1.158,2642.8,2642.5,6.25946]
[1723346201682,1.158,2642.8,2642.5,2.4753]
[1723346201889,1.158,2642.8,2642.5,6.25958]
[1723346203795,1.158,2642.8,2642.5,10.04379]
[1723346204029,1.158,2642.8,2642.5,6.25951]
[1723346204621,1.158,2642.8,2642.5,2.4753]
[1723346205181,1.158,2642.6,2642.0,10.62759992]
[1723346205385,1.158,2642.6,2642.3,3.78457]
[1723346205617,0.05278241,2642.5,2642.3,3.78457]
[1723346206193,0.05278241,2642.5,2642.3,3.7845]
[1723346206423,0.05278241,2642.5,2642.3,3.78448]
[1723346206583,0.05278241,2642.5,2642.4,2.2655]
[1723346207709,0.05278241,2642.5,2642.4,6.04993]
[1723346207914,0.05278241,2642.5,2642.4,10.89348171]
[1723346208429,1.158,2642.8,2642.7,3.784]
[1723346211329,1.158,2642.8,2642.5,3.85995349]
[1723346211553,1.158,2642.8,2642.5,0.07567349]
[1723346211692,1.158,2642.8,2641.9,10.35]
[1723346211693,1.158,2642.6,2642.1,2.2655]
[1723346211894,1.158,2642.6,2642.3,3.78452]
[1723346212142,1.158,2642.6,2642.2,3.78459]
[1723346213040,1.158,2642.6,2642.3,3.78454]
[1723346213621,1.158,2642.6,2642.1,2.2655]
[1723346213824,1.158,2642.6,2642.1,3.52705]
[1723346214333,3.78349,2643.1,2642.5,3.78422]
[1723346214529,1.158,2642.9,2642.6,3.85974149]
[1723346215641,6.2778,2643.2,2642.6,3.85974149]
[1723346215847,1.158,2642.9,2642.6,3.85974149]
[1723346218233,3.78307,2643.4,2642.9,3.78362]
[1723346218556,1.158,2643.2,2643.0,0.07566398]
[1723346218846,1.158,2643.2,2642.9,3.85928474]
[1723346219646,1.158,2643.2,2642.9,0.07566474]
[1723346220158,1.158,2643.0,2642.5,6.04972]
[1723346220318,1.158,2642.8,2642.5,3.78421]
[1723346220522,1.158,2642.8,2642.5,7.56841]
[1723346220721,1.158,2642.8,2642.5,3.7842]
[1723346223366,0.0527911,2642.7,2642.3,9.94587]
[1723346223678,1.158,2642.8,2642.5,3.78427]
[1723346224257,0.0527911,2642.7,2642.5,3.78427]
[1723346224444,1.158,2642.8,2642.3,7.155947]
[1723346224651,0.05279063,2642.6,2642.4,3.7843]
[1723346224870,0.05279063,2642.6,2642.3,7.155947]
[1723346224871,1.158,2642.8,2642.5,3.78429]
[1723346225433,1.158,2642.8,2642.6,0.07567294]
[1723346226866,2.3297,2643.3,2642.7,6.16085]
[1723346227069,13.5402833,2643.5,2642.8,0.07566375]
[1723346227271,1.158,2643.2,2642.9,3.78363]
[1723346227473,1.158,2643.2,2643.0,0.0756621]
[1723346228276,2.3297,2643.1,2642.7,3.78392]
[1723346228455,1.158,2643.0,2642.5,6.16113]
[1723346228657,1.158,2643.0,2642.6,3.85973096]
[1723346228850,1.158,2643.0,2642.6,0.07567096]
[1723346229065,1.158,2643.0,2642.6,3.78412]
[1723346229362,1.158,2643.0,2642.6,3.85979044]
[1723346230243,1.158,2643.0,2642.7,3.78397]
[1723346230989,1.158,2643.0,2642.5,6.16106]
[1723346231292,4.94158,2643.0,2642.5,6.16106]
[1723346232078,3.78333,2643.2,2642.5,6.16112]
[1723346232241,1.158,2643.0,2642.6,0.616112]
[1723346232442,1.158,2643.0,2642.7,3.78392]
[1723346232643,1.158,2643.0,2642.8,0.07566862]
[1723346234268,1.158,2643.0,2642.7,3.78392]
[1723346234749,1.158,2643.0,2642.8,0.07566872]
[1723346234950,2.3297,2643.3,2642.8,3.78383]
[1723346235257,1.158,2643.0,2642.9,0.07566214]
[1723346235457,1.158,2643.0,2642.7,3.78392]
[1723346235982,3.78308,2643.4,2642.8,0.07566421]
[1723346236201,1.158,2643.1,2642.8,2.45256421]
[1723346236553,1.158,2643.1,2642.9,3.7836]
[1723346237250,1.158,2643.1,2642.8,6.23640421]
[1723346237682,1.158,2643.1,2642.8,6.16074]
[1723346238392,0.05291587,2643.0,2642.8,6.16074]
[1723346238745,0.05291587,2643.0,2642.8,7.22297532]
[1723346240544,0.05291587,2643.0,2642.9,3.78372]
[1723346240745,1.158,2643.2,2642.8,3.43913532]
[1723346240949,4.94141,2643.2,2642.6,3.78405]
[1723346241195,1.158,2643.0,2642.6,3.78405]
[1723346241482,0.05291457,2643.1,2642.6,3.78405]
[1723346241691,0.05291349,2642.9,2642.6,4.777926]
[1723346241845,0.05291396,2643.0,2642.7,0.0756679]
[1723346242295,0.05291396,2643.0,2642.8,3.78386]
[1723346242593,0.05291396,2643.0,2642.9,0.07566397]
[1723346242963,0.05291396,2643.0,2642.9,2.44596397]
[1723346243788,0.05291396,2643.0,2642.9,6.22968397]
[1723346243978,0.05291396,2643.0,2642.9,1.0013474]
[1723346244179,1.158,2643.1,2642.6,6.15432]
[1723346244355,0.05296134,2643.0,2642.7,3.78392]
[1723346245262,0.05296134,2643.0,2642.6,6.15432]
[1723346245469,0.05296134,2643.0,2642.7,4.399422]
[1723346245882,0.03537766,2643.0,2642.7,4.399422]
[1723346246190,0.05276488,2643.0,2642.7,4.399422]
[1723346247689,0.05276488,2643.0,2642.7,0.615432]
[1723346248693,0.05276488,2643.0,2642.9,3.78372]
[1723346248993,0.05276488,2643.0,2642.9,4.23120165]
[1723346249303,0.05276372,2643.0,2642.9,4.30686138]
[1723346249678,11.1812333,2643.5,2642.9,4.30686138]
[1723346249989,0.05278561,2643.4,2643.0,0.80906314]
[1723346250353,3.83580561,2643.4,2643.0,0.80906314]
[1723346250775,0.05278561,2643.4,2643.0,0.80906314]
[1723346252084,3.83579561,2643.4,2643.0,0.80906314]
[1723346253906,0.05278561,2643.4,2643.0,6.96280314]
[1723346254197,0.05278561,2643.4,2643.1,0.74102848]
[1723346254359,0.05278561,2643.4,2643.1,0.81668821]
[1723346254707,0.05278561,2643.4,2643.1,4.60002821]
[1723346254860,0.05278561,2643.4,2643.1,0.81668821]
[1723346255197,0.05278561,2643.4,2643.1,4.60010821]
[1723346255352,0.05278561,2643.4,2643.1,0.81668821]
[1723346255776,0.05278561,2643.4,2643.1,4.60009821]
[1723346256381,0.05278561,2643.4,2643.2,1.07538382]
[1723346258588,0.05278561,2643.4,2643.2,4.85866382]
[1723346258789,0.05278561,2643.4,2643.3,0.07565549]
[1723346258973,0.05278561,2643.4,2643.3,6.12369549]
[1723346259301,0.05278561,2643.4,2643.1,0.74102848]
[1723346259665,0.05278561,2643.4,2643.1,4.52442848]
[1723346259866,0.05278561,2643.4,2643.2,2.2649]
[1723346260060,0.05278561,2643.4,2643.2,6.04818]
[1723346260362,0.05278561,2643.4,2643.2,7.10546785]
[1723346261201,0.05278561,2643.4,2643.2,10.88867785]
[1723346261373,0.05278561,2643.4,2643.2,7.10539785]
[1723346262468,0.05278561,2643.4,2643.2,10.88859785]
[1723346262883,0.05278561,2643.4,2643.3,0.61297154]
[1723346263300,0.05278561,2643.4,2643.3,4.39611154]
[1723346263680,0.05278561,2643.4,2643.3,0.61297154]
[1723346263886,0.05278561,2643.4,2643.2,6.0481]
[1723346264190,0.05278561,2643.4,2643.2,3.7832]
[1723346265297,0.05278561,2643.4,2643.0,9.83189]
[1723346265496,0.05278561,2643.4,2643.0,6.04836]
[1723346265697,0.05278561,2643.4,2643.0,6.653196]
[1723346266130,0.05278561,2643.4,2643.0,7.56693]
[1723346266267,0.05278561,2643.4,2643.0,7.56695]
[1723346266588,0.05278561,2643.4,2643.0,3.78346]
[1723346266904,0.05278561,2643.4,2643.0,7.56696]
[1723346268613,0.05278561,2643.4,2643.0,3.78346]
[1723346269118,7.31455,2643.3,2642.8,6.04866]
[1723346269527,0.05088575,2643.2,2642.8,6.04866]
[1723346270016,1.158,2643.1,2642.6,6.04895]
[1723346270222,1.20888446,2643.1,2642.8,3.78385]
[1723346271122,1.20888446,2643.1,2642.6,7.03228]
[1723346271277,1.20888446,2643.1,2642.6,3.24823]
[1723346271476,1.20888446,2643.1,2642.1,3.78482]
[1723346271477,4.94172,2642.9,2642.1,3.78482]
[1723346271682,0.05082199,2642.8,2642.3,3.78453]
[1723346271919,1.158,2642.7,2642.1,6.04963]
[1723346272091,1.158,2642.7,2642.2,4.389583]
[1723346272283,0.05069975,2642.6,2642.2,0.604963]
[1723346272485,3.78437,2642.5,2642.1,2.2649]
[1723346272685,3.78437,2642.5,2641.9,3.78506]
[1723346272686,0.05069867,2642.4,2641.9,3.78506]
[1723346273107,0.05069867,2642.4,2641.9,7.57012]
[1723346273318,0.05069867,2642.4,2641.9,8.553622]
[1723346273519,0.05069867,2642.4,2641.9,4.768562]
[1723346273919,0.05069867,2642.4,2641.9,8.553622]
[1723346274239,0.05069867,2642.4,2642.0,3.78498]
[1723346274383,0.05069867,2642.4,2642.2,3.7847]
[1723346274724,0.05069867,2642.4,2642.1,3.78477]
[1723346275086,7.31547,2642.7,2642.1,3.78477]
[1723346275298,0.05034046,2642.6,2642.1,3.78477]
[1723346275620,0.05034046,2642.6,2641.9,8.553622]
[1723346275621,3.83454046,2642.6,2641.9,8.553622]
[1723346275982,3.83454046,2642.6,2642.0,3.78499]
[1723346276209,3.83454046,2642.6,2641.9,4.768532]
[1723346276413,3.83454046,2642.6,2642.1,3.78486]
[1723346276613,0.05034046,2642.6,2642.1,3.78486]
[1723346277233,0.05034046,2642.6,2642.1,7.56963]
[1723346277437,0.05034046,2642.6,2642.1,4.6400832]
[1723346277824,0.05034046,2642.6,2642.2,2.340588]
[1723346278026,10.8314,2642.9,2642.5,3.78429]
[1723346278229,0.05034141,2642.8,2642.5,3.78429]
[1723346278955,0.05034141,2642.8,2642.7,3.784]
[1723346279118,0.05034141,2642.8,2642.6,3.78405]
[1723346279314,1.158,2643.0,2642.6,3.78405]
[1723346279661,0.0504858,2642.9,2642.4,7.56871]
[1723346279815,0.0504858,2642.9,2642.4,8.552071]
[1723346280234,0.0504858,2642.9,2642.4,4.767701]
[1723346280423,0.0504858,2642.9,2642.4,8.552051]
[1723346280651,0.0504858,2642.9,2642.5,3.78429]
[1723346280843,0.0504858,2642.9,2642.4,4.767701]
[1723346281152,0.0504858,2642.9,2642.4,8.552051]
[1723346281569,0.0504858,2642.9,2642.6,3.78413]
[1723346281870,0.0504858,2642.9,2642.5,0.8552051]
[1723346282069,0.0504858,2642.9,2642.6,3.78408]
[1723346282277,0.0504858,2642.9,2642.7,3.78391]
[1723346282850,2.4083,2642.8,2642.6,3.78408]
[1723346283056,0.0505224,2642.7,2642.4,3.7844]
[1723346283579,3.5663,2643.0,2642.4,3.7844]
[1723346284004,0.05053545,2642.9,2642.5,3.78429]
[1723346284218,0.05053545,2642.9,2642.4,3.7844]
[1723346284364,0.05053545,2642.9,2642.5,0.40964213]
[1723346284673,0.05053545,2642.9,2642.5,4.19392213]
[1723346285065,2.4083,2642.7,2642.1,4.6400832]
[1723346285265,0.05053403,2642.6,2642.2,3.78471]
[1723346286706,0.05053403,2642.6,2642.2,7.56935]
[1723346287002,1.20853403,2642.6,2642.0,3.7849]
[1723346287212,4.99279403,2642.6,2642.0,3.7849]
[1723346287711,4.99277403,2642.6,2642.0,3.7849]
[1723346287861,3.78459,2642.3,2641.6,6.16315]
[1723346288066,0.05042278,2642.2,2641.7,4.02317]
[1723346288266,0.05042278,2642.2,2641.8,3.78528]
[1723346288492,3.78459,2642.3,2641.8,4.94467]
[1723346288691,0.05042278,2642.2,2641.8,4.94467]
[1723346289007,4.94253,2642.4,2641.8,4.94467]
[1723346289178,0.05042231,2642.1,2641.8,4.94467]
[1723346289503,0.05042184,2642.0,2641.9,4.279597]
[1723346289799,9.7083,2642.5,2642.4,3.78443]
[1723346289800,7.3,2642.5,2642.4,3.78443]
[1723346289986,1.158,2643.0,2642.6,3.78414]
[1723346290190,1.108,2643.0,2642.6,3.78414]
[1723346290583,1.108,2643.0,2642.7,3.78391]
[1723346290906,1.108,2643.0,2642.6,3.78414]
[1723346291074,1.108,2643.0,2642.6,7.56821]
[1723346291300,1.108,2643.0,2642.6,3.78407]
[1723346291503,1.108,2643.0,2642.6,3.78406]
[1723346293737,9.7083,2643.1,2642.6,3.78406]
[1723346293904,2.4083,2643.1,2642.6,3.78406]
[1723346294221,6.19173,2643.1,2642.6,3.78406]
[1723346296039,3.78365,2643.0,2642.4,3.78435]
[1723346296196,3.78338,2643.2,2642.6,3.78403]
[1723346296405,3.78354,2643.1,2642.6,3.78403]
[1723346296936,3.78338,2643.2,2642.6,3.78403]
[1723346297299,7.56675,2643.2,2642.6,3.78403]
[1723346297599,13.49141,2643.4,2642.8,3.78386]
[1723346298247,0.04708478,2643.3,2642.8,3.78386]
[1723346299219,3.83025478,2643.3,2642.8,3.78386]
[1723346299960,0.04708478,2643.3,2643.0,3.78347]
[1723346300456,0.04708478,2643.3,2643.1,3.7834]
[1723346302261,0.04708478,2643.3,2643.1,7.56674]
[1723346302576,0.04708478,2643.3,2643.1,7.56669]
[1723346302762,0.04708478,2643.3,2643.2,7.56658]
[1723346302966,0.04708478,2643.3,2643.2,3.78329]
[1723346303137,0.1276533,2643.5,2643.2,3.78329]
[1723346303138,0.1276533,2643.5,2643.2,4.539965]
[1723346303463,0.04727118,2643.4,2643.3,3.7831]
[1723346304122,0.04727118,2643.4,2643.1,3.78335]
[1723346304322,0.04727118,2643.4,2643.1,8.47755789]
[1723346304560,0.04727118,2643.4,2643.1,4.69420789]
[1723346304867,0.04727118,2643.4,2643.2,3.78327]
[1723346305067,0.04727118,2643.4,2643.1,8.47752789]
[1723346305861,0.04727118,2643.4,2643.2,3.78325]
[1723346307272,0.04727118,2643.4,2643.0,3.78347]
[1723346307426,0.04727118,2643.4,2643.2,3.78328]
[1723346307822,2.36617118,2643.4,2642.8,6.05357]
[1723346308049,2.36617118,2643.4,2642.8,6.05354]
[1723346308253,0.04727118,2643.4,2643.1,3.7834]
[1723346308663,0.04727118,2643.4,2643.0,3.78356]
[1723346308829,0.04727118,2643.4,2642.9,3.78366]
[1723346308830,2.3189,2643.3,2642.9,3.78366]
[1723346309030,2.3189,2643.3,2642.5,2.2698]
[1723346309267,0.04609376,2643.2,2642.6,0.22698]
[1723346309463,0.04609376,2643.2,2643.0,3.78357]
[1723346309668,2.4465533,2643.5,2643.0,3.78357]
[1723346309853,0.04608203,2643.4,2643.0,3.78357]
[1723346312384,0.04608203,2643.4,2643.1,3.78334]
[1723346315281,0.04608203,2643.4,2643.3,3.78314]
[1723346316787,0.04608203,2643.4,2643.2,3.78319]
[1723346317986,0.04608203,2643.4,2643.1,3.78341]
[1723346318470,0.04608203,2643.4,2643.2,3.78326]
[1723346320694,0.04608203,2643.4,2642.9,3.78359]
[1723346320868,0.04382825,2643.4,2643.0,4.161849]
[1723346321765,0.04382825,2643.4,2643.1,3.78342]
[1723346321970,0.04382825,2643.4,2643.0,4.161929]
[1723346323006,0.04382825,2643.4,2643.0,0.378359]
[1723346323203,0.04382825,2643.4,2642.9,7.56723]
[1723346326135,0.04382825,2643.4,2642.9,3.78359]
[1723346327030,0.04382825,2643.4,2642.9,7.56723]
[1723346327232,0.04382825,2643.4,2642.9,7.56722]
[1723346327794,0.04382825,2643.4,2642.9,3.78359]
[1723346327991,0.04382825,2643.4,2642.9,7.56722]
[1723346328396,0.04382825,2643.4,2643.2,3.78328]
[1723346328845,0.04382825,2643.4,2643.2,7.56649]
[1723346329044,0.04382825,2643.4,2643.2,3.78321]
[1723346329332,0.04382825,2643.4,2643.3,3.78314]
[1723346329518,0.04382825,2643.4,2643.2,3.78321]
[1723346330097,0.04382825,2643.4,2643.2,7.56641]
[1723346330318,0.04382825,2643.4,2643.2,3.7832]
[1723346330940,0.04382825,2643.4,2643.2,7.56641]
[1723346331218,0.04382825,2643.4,2643.3,7.64193639]
[1723346332535,0.04382825,2643.4,2643.2,1.004421]
[1723346332740,0.04382825,2643.4,2643.3,3.85879423]
[1723346333037,0.04382825,2643.4,2643.3,3.78314]
[1723346334512,0.04382825,2643.4,2643.1,6.2611]
[1723346334740,0.04382825,2643.4,2643.2,4.52497]
[1723346334943,0.04382825,2643.4,2643.3,10.04408]
[1723346338562,0.04382825,2643.4,2643.2,0.74171]
[1723346338563,4.98282825,2643.4,2642.6,4.01105]
[1723346338711,4.93933,2643.2,2642.6,3.78407]
[1723346338916,0.04166798,2643.1,2642.6,3.78414]
[1723346339113,2.4597,2643.0,2642.6,3.78414]
[1723346339429,0.04166703,2642.9,2642.6,3.78414]
[1723346339631,0.04166703,2642.9,2642.6,4.540988]
[1723346339839,0.04166703,2642.9,2642.8,14.80608]
[1723346340243,0.1276533,2643.5,2643.4,3.783]
[1723346340631,0.16932316,2643.5,2643.4,3.783]
[1723346341866,3.95219316,2643.5,2643.0,3.78344]
[1723346342017,6.41189316,2643.5,2643.0,3.78344]
[1723346342354,6.41188316,2643.5,2643.0,3.78346]
[1723346343131,2.62902316,2643.5,2643.1,3.78335]
[1723346343422,2.62902316,2643.5,2643.0,3.78346]
[1723346343755,0.16932316,2643.5,2643.0,4.161806]
[1723346344001,0.16932316,2643.5,2643.2,3.7832]
[1723346344147,0.16932316,2643.5,2643.3,3.78313]
[1723346345023,0.16932316,2643.5,2643.4,3.783]
[1723346345224,0.16932316,2643.5,2643.4,8.32262]
[1723346347964,0.16932316,2643.5,2643.4,15.56012]
[1723346347965,3.16e-06,2643.5,2643.4,15.56012]
[1723346348171,2.4597,2644.8,2643.5,2.2985]
[1723346348368,0.03921997,2644.7,2644.5,3.78134]
[1723346348677,1.256,2645.0,2644.6,3.78129]
[1723346348886,1.256,2645.0,2644.1,3.85754196]
[1723346348887,0.1,2645.0,2644.9,3.78086]
[1723346349079,3.78153,2644.5,2643.9,3.78222]
[1723346349238,3.78098,2644.9,2644.3,3.78161]
[1723346349438,0.036762,2644.4,2644.3,3.78161]
[1723346349639,1.156,2644.8,2644.3,3.78161]
[1723346349839,1.156,2644.8,2644.2,3.78182]
[1723346349840,0.03676604,2644.4,2644.2,3.78182]
[1723346350037,3.78101,2644.8,2644.0,3.78212]
[1723346350237,0.03676557,2644.3,2643.9,3.78219]
[1723346350443,2.4597,2644.5,2643.9,3.78219]
[1723346350670,0.03680962,2644.2,2644.0,3.78214]
[1723346350860,2.4597,2644.5,2644.1,3.78191]
[1723346351185,2.4597,2644.5,2644.2,3.78183]
[1723346351518,2.4597,2644.8,2644.4,3.78146]
[1723346351693,2.4597,2644.8,2644.3,3.78163]
[1723346351987,6.24078,2644.8,2644.0,3.78203]
[1723346352540,6.24078,2644.8,2644.2,3.78181]
[1723346352945,6.24078,2644.8,2644.3,3.7817]
[1723346353144,2.4597,2644.8,2644.3,3.7817]
[1723346353381,3.88079,2645.0,2644.6,3.78128]
[1723346353382,0.1,2645.0,2644.6,3.78128]
[1723346354285,0.1,2645.0,2644.8,3.7809]
[1723346354764,0.1,2645.0,2644.7,3.78107]
[1723346355147,0.1,2645.0,2644.9,3.78086]
[1723346355589,0.13565761,2645.0,2644.9,7.56172]
[1723346355975,0.13565761,2645.0,2644.9,4.766882]
[1723346356366,0.13565761,2645.0,2644.4,3.78148]
[1723346356367,6.37610761,2645.0,2644.4,3.78148]
[1723346356573,10.15693761,2645.0,2644.4,3.78148]
[1723346356759,6.37610761,2645.0,2644.4,3.78148]
[1723346357161,3.78104,2644.8,2644.2,7.56352]
[1723346357497,0.0356562,2644.7,2644.2,3.78175]
[1723346358258,0.0356562,2644.7,2644.4,3.78147]
[1723346358458,0.0356562,2644.7,2644.5,3.78133]
[1723346358706,2.5597,2645.0,2644.5,3.78133]
[1723346359032,3.78098,2644.9,2644.3,3.78163]
[1723346359210,3.81663714,2644.9,2644.3,3.78163]
[1723346359762,3.78102,2644.8,2644.2,3.78177]
[1723346360095,0.0356562,2644.7,2644.2,3.78177]
[1723346360501,3.8168262,2644.7,2644.1,6.08046]
[1723346360803,0.0356562,2644.7,2644.2,3.78185]
[1723346360992,3.8168462,2644.7,2644.2,3.78185]
[1723346361186,3.8168462,2644.7,2644.0,7.56414]
[1723346361187,3.78137,2644.6,2644.0,7.56414]
[1723346361391,0.03565526,2644.5,2644.0,7.56413]
[1723346361705,0.03565526,2644.5,2644.2,3.78181]
[1723346361872,0.03565526,2644.5,2644.3,3.7817]
[1723346362072,7.3,2644.8,2644.3,3.7817]
[1723346362406,7.3,2644.8,2644.6,3.78127]
[1723346362563,0.1,2645.0,2644.7,3.78114]
[1723346362783,0.1,2645.0,2644.8,3.78092]
[1723346362987,0.1,2645.0,2644.8,7.56182]
[1723346363230,0.1,2645.0,2644.8,3.7809]
[1723346363428,0.1,2645.0,2644.9,3.78086]
[1723346364429,0.1,2645.0,2644.8,3.7809]
[1723346365424,0.1,2645.0,2644.9,3.78086]
[1723346369529,0.1,2645.0,2644.9,7.56172]
[1723346369899,0.1,2645.0,2644.9,3.78086]
[1723346370093,0.1,2645.0,2644.4,2.333]
[1723346370299,2.3274,2644.9,2644.0,3.78206]
[1723346370607,0.1,2645.0,2643.9,3.78228]
[1723346370608,2.3274,2644.6,2643.9,3.78228]
[1723346370810,3.78146,2644.5,2643.8,3.78232]
[1723346371130,3.78146,2644.5,2643.9,0.611532]
[1723346371330,3.78158,2644.4,2643.9,0.611532]
[1723346371634,3.78146,2644.5,2643.8,3.78232]
[1723346372001,3.78166,2644.4,2643.8,3.78232]
[1723346372641,7.56298,2644.5,2643.8,3.78232]
[1723346372948,3.78146,2644.5,2644.0,3.78213]
[1723346373113,0.03581267,2644.4,2644.0,3.78213]
[1723346374229,0.03581267,2644.4,2644.1,3.85755768]
[1723346374538,0.0358122,2644.3,2644.1,8.08634665]
[1723346374737,3.78122,2644.7,2644.1,8.08634665]
[1723346375039,0.03581361,2644.6,2644.1,8.08634665]
[1723346375749,0.03581361,2644.6,2644.2,3.78182]
[1723346376257,0.03581361,2644.6,2644.2,3.85744946]
[1723346376463,0.03581361,2644.6,2644.2,3.78182]
[1723346376966,3.78109,2644.8,2644.2,3.8574482]
[1723346377251,3.81564971,2644.7,2644.1,3.78188]
[1723346377558,3.78129,2644.6,2644.1,3.78188]
[1723346377713,0.03448877,2644.5,2644.2,3.78185]
[1723346377920,3.7811,2644.8,2644.2,3.78185]
[1723346378157,0.03448971,2644.7,2644.2,3.78185]
[1723346378332,2.3571,2644.6,2643.9,3.78217]
[1723346378532,3.81599877,2644.5,2643.9,3.78217]
[1723346379345,3.81597877,2644.5,2643.6,2.4412]
[1723346379548,3.78184,2644.3,2643.7,3.78249]
[1723346379736,0.03446301,2644.2,2643.7,7.56498]
[1723346381046,3.78219,2644.0,2643.5,3.78277]
[1723346381362,3.78219,2644.0,2643.0,3.0]
[1723346381363,3.8167516,2643.9,2643.3,3.7831]
[1723346381647,3.8167516,2643.9,2643.3,3.78306]
[1723346381795,3.8167516,2643.9,2643.4,3.78299]
[1723346382092,3.78244,2643.8,2643.2,2.4412]
[1723346382294,3.7826,2643.7,2643.2,3.1314896]
[1723346382500,3.81695098,2643.7,2643.2,4.4735696]
[1723346383266,0.03435098,2643.7,2643.4,3.78291]
[1723346383503,0.03435098,2643.7,2643.4,7.56582]
[1723346383663,3.78216,2644.0,2643.4,3.78291]
[1723346383872,0.03419229,2643.6,2643.4,3.78291]
[1723346384068,3.78216,2644.0,2643.4,4.65328666]
[1723346384263,0.03419181,2643.5,2643.4,7.17014091]
[1723346384499,7.56414,2644.1,2643.5,3.78286]
[1723346384653,7.56414,2644.1,2643.5,3.85850888]
[1723346384860,3.78203,2644.1,2643.5,3.85850888]
[1723346385085,6.13897,2644.2,2643.6,3.78268]
[1723346385264,6.13897,2644.2,2643.7,3.78249]
[1723346386889,2.3571,2644.4,2643.9,3.78226]
[1723346387090,6.1387,2644.4,2643.9,3.78226]
[1723346388159,0.03415499,2644.3,2643.7,3.85808259]
[1723346388500,3.81588499,2644.3,2643.8,3.78242]
[1723346388799,0.03415499,2644.3,2643.8,3.78234]
[1723346389508,0.03415499,2644.3,2643.8,7.56468]
[1723346389678,0.03415499,2644.3,2643.9,3.78228]
[1723346389997,0.03415499,2644.3,2643.8,3.78242]
[1723346390296,9.6571,2644.6,2643.8,3.78242]
[1723346390502,0.03421957,2644.2,2643.8,3.78232]
[1723346390805,0.0342191,2644.1,2643.8,3.78232]
[1723346390961,3.7817,2644.4,2643.8,4.404672]
[1723346391298,0.03421612,2644.3,2643.9,3.78227]
[1723346393183,0.03421612,2644.3,2643.9,4.6009872]
[1723346393605,0.03421612,2644.3,2643.9,4.6009172]
[1723346393783,0.03421612,2644.3,2644.0,3.78213]
[1723346394005,3.78145,2644.5,2643.9,3.7822]
[1723346394181,0.03422038,2644.4,2643.9,3.7822]
[1723346394812,3.78153,2644.5,2644.0,3.78212]
[1723346395135,3.78153,2644.5,2643.9,3.78228]
[1723346395136,3.81584038,2644.4,2643.9,3.78228]
[1723346395431,0.03422038,2644.4,2643.9,3.7822]
[1723346395732,0.03422038,2644.4,2644.0,3.78211]
[1723346395881,0.03422038,2644.4,2643.6,2.4412]
[1723346395882,9.6571,2644.6,2644.1,3.78186]
[1723346396081,9.6571,2644.6,2644.1,3.78193]
[1723346396082,0.03431891,2644.3,2644.1,3.78193]
[1723346396398,0.03431681,2644.2,2644.1,3.78193]